Cogmind - Beta 11.1 @@@ ROGUE MODE // 2022.05.18 @ 09:34:45 Player: Flowthing Result: Destroyed by G-34 Mercenary with Small Laser Performance ------------- Evolutions (1) 500 Regions Visited (2) 400 Robots Destroyed (46) 230 Value Destroyed (1319) 1319 Prototype IDs (3) 60 Alien Tech Used (0) 0 Bonus (0) 0 TOTAL SCORE: 2509 Bonus ------- None Cogmind --------- Core Integrity 0/400 Matter 265/300 Energy 265/265 System Corruption 1% Temperature Cool (6) Movement Rolling (150) Ox4 Location -9/Materials Parts ------- > --- POWER (1) -------- Improved Ion Engine > --- PROPULSION (3) --- Armored Wheel > --- UTILITY (3) ------ High-capacity Storage Unit Improved Targeting Computer Hacking Suite > --- WEAPON (2) ------- Advanced Beam Cannon Heavy Assault Rifle > --- INVENTORY (20) --- Improved Ion Engine Improved Ion Engine Improved Ion Engine Light Nuclear Core VTOL Module VTOL Module VTOL Module VTOL Module Improved Flight Unit Heat Sink Small Storage Unit Improved Targeting Computer Hardened Light Armor Plating Hardened Light Armor Plating Light Assault Rifle Mace Mace Peak State ------------ > --- POWER ------------ Improved Ion Engine > --- PROPULSION ------- Armored Wheel Improved Flight Unit > --- UTILITY ---------- High-capacity Storage Unit Improved Targeting Computer Hacking Suite > --- WEAPON ----------- Advanced Beam Cannon Heavy Assault Rifle > --- INVENTORY -------- Improved Ion Engine Improved Ion Engine Improved Ion Engine Light Nuclear Core VTOL Module VTOL Module VTOL Module VTOL Module Heat Sink Small Storage Unit Improved Targeting Computer Hardened Light Armor Plating Light Assault Rifle Mace Mace [Rating: 20] Favorites ----------- Power Improved Ion Engine Engine Improved Ion Engine Propulsion Aluminum Leg Leg Aluminum Leg Wheel Armored Wheel Flight Unit Improved Flight Unit Utility High-capacity Storage Unit Device Heat Sink Storage High-capacity Storage Unit Processor Improved Targeting Computer Hackware Hacking Suite Protection Medium Armor Plating Weapon Advanced Beam Cannon Energy Gun Medium Laser Energy Cannon Advanced Beam Cannon Ballistic Gun Assault Rifle Impact Weapon Mace Build | -11 -10 -9 ------- Run | Scr Mat Mat Slots Evolved 2 | . . 2 Power . | . . . Propulsion 1 | . . 1 Utility 1 | . . 1 Weapon . | . . . Parts Attached 40 | . 8 32 Power 6 | . 2 4 Engine 6 | . 2 4 Core . | . . . Reactor . | . . . Propulsion 15 | . 2 13 Treads . | . . . Leg 12 | . 2 10 Wheel 2 | . . 2 Hover . | . . . Flight 1 | . . 1 Utility 8 | . 2 6 Device 2 | . . 2 Storage 1 | . . 1 Processor 2 | . 1 1 Hackware 1 | . . 1 Protection 2 | . 1 1 Artifact . | . . . Weapon 11 | . 2 9 Energy Gun 2 | . 1 1 Energy Cannon 4 | . 1 3 Ballistic Gun 3 | . . 3 Ballistic Cannon . | . . . Launcher . | . . . Special Weapon . | . . . Impact Weapon 2 | . . 2 Slashing Weapon . | . . . Piercing Weapon . | . . . Special Melee Weapon . | . . . Unidentified Prototypes 3 | . . 3 Parts Lost 15 | . 1 14 Power 3 | . 1 2 Propulsion 7 | . . 7 Utility 3 | . . 3 Weapon 2 | . . 2 Highest Loss Streak 4 | . 1 4 To Critical Strikes . | . . . Average Slot Usage (%) 93 | . 98 91 Engine 11 | . 14 10 Leg 26 | . 28 26 Wheel 1 | . . 2 Device 5 | . . 7 Storage 12 | . 14 11 Processor 7 | . 6 8 Hackware 1 | . . 1 Protection 2 | . 6 1 Energy Gun 2 | . 8 . Energy Cannon 10 | . . 14 Ballistic Gun 10 | . 19 6 Naked Turns . | . . . Heaviest Build 56 | 11 20 56 Greatest Support 30 | 20 20 30 Greatest Overweight (x) 4 | . . 4 Average Overweight (x) . | . . 1 Largest Inventory Capacity 20 | . 8 20 Average Capacity 14 | . 8 17 Most Carried 19 | . 8 19 Average Carried 11 | . 7 13 Final Capacity 20 | 8 8 20 Final Carried 17 | 6 8 17 Class Distribution -------------------- 65% | Mutant 34% | Scavenger-Mutant Dominant Class ---------------- Mutant | -10/Materials Scavenger-Mutant | -9/Materials Resources | -11 -10 -9 ----------- Run | Scr Mat Mat Matter Collected 803 | 190 172 441 Remotely . | . . . Salvage Created 1681 | . 254 1427 Parts 102 | . 23 79 Haulers Intercepted 3 | . . 3 Recyclers Shooed 4 | . . 4 Parts Field Recycled . | . . . Retrieved Matter . | . . . Parts Self-Destructed . | . . . Prevented . | . . . Kills | -11 -10 -9 ------- Run | Scr Mat Mat Combat Hostiles Destroyed 37 | . 8 29 Melee 2 | . . 2 Guns 14 | . 8 6 Cannons 20 | . . 20 AOE 1 | . . 1 Classes Destroyed 11 | . 5 6 Worker 1 | . 1 . Builder 1 | . . 1 Tunneler 1 | . 1 . Hauler 3 | . . 3 Operator 1 | . . 1 Watcher 2 | . 1 1 Swarmer 7 | . 5 2 Grunt 20 | . 3 17 Brawler 1 | . . 1 Duelist 1 | . . 1 Sentry 8 | . . 8 Best Kill Streak 6 | . 6 5 Combat Bots Only 5 | . 5 5 Max Kills in Single Turn 1 | . 1 1 Gunslinging . | . . . Exploded 1 | . . 1 Melee 1 | . . 1 Uniques/NPCs Destroyed . | . . . Combat | -11 -10 -9 -------- Run | Scr Mat Mat Damage Taken 2415 | . 300 2115 Core 430 | . 23 407 Absorbed by Shields . | . . . Core Remaining (%) 95 | 100 90 . Volleys Fired 148 | . 28 120 Largest 2 | . 2 2 Hottest 136 | . 70 136 Shots Fired 261 | . 57 204 Gun 124 | . 57 67 Cannon 137 | . . 137 Launcher . | . . . Special . | . . . Kinetic 122 | . 55 67 Thermal 139 | . 2 137 Explosive . | . . . Electromagnetic . | . . . Robot Hit Streak 15 | . 15 12 Robot Miss Streak 5 | . 3 5 Penetration Max . | . . . Secondary Targets . | . . . Shots Hit Robots 178 | . 34 144 Core Hits 66 | . 16 50 Critical Kills 1 | . . 1 Critical Parts Destroyed 3 | . 1 2 Critical Strikes 4 | . 1 3 Destroy 1 | . 1 . Smash 3 | . . 3 Melee Attacks 8 | . . 8 Impact 8 | . . 8 Slashing . | . . . Piercing . | . . . Sneak Attacks 1 | . . 1 Combat Hostiles . | . . . Follow-up Attacks . | . . . Damage Inflicted 2998 | . 393 2605 Guns 964 | . 393 571 Cannons 1791 | . . 1791 Explosions . | . . . Melee 234 | . . 234 Ramming 9 | . . 9 Kinetic 952 | . 381 571 Thermal 1803 | . 12 1791 Explosive . | . . . Electromagnetic . | . . . Impact 234 | . . 234 Slashing . | . . . Piercing . | . . . Highest Corruption 1 | . 1 1 Average Corruption 1 | . 1 1 Corruption Purged . | . . . Corruption Blocked . | . . . Effects 20 | . 7 13 Message Errors 5 | . 1 4 Matter Fused 4 | . 1 3 Heat Flow Errors 3 | . 2 1 Energy Discharges 4 | . . 4 Data Loss (minor) 2 | . 1 1 Data Loss (major) 1 | . 1 . Misfires 1 | . 1 . Overload Shots . | . . . Overflow Damage 88 | . . 88 Projectiles 3 | . . 3 Explosions . | . . . Melee 85 | . . 85 Knockbacks . | . . . Impact . | . . . Kinetic . | . . . Secondary . | . . . Self-Inflicted Damage 4 | . . 4 Shots . | . . . Rammed 1 | . . 1 Targets Rammed 2 | . . 2 Kicked 1 | . . 1 Crushed . | . . . Highest Temperature 324 | . 213 324 Average Temperature 89 | . 67 92 Received Heat Transfer 906 | . 126 780 Effects 2 | . . 2 Energy Bleed 1 | . . 1 Short Circuit 1 | . . 1 Siege Activations . | . . . Robots Corrupted . | . . . Combat Hostiles . | . . . Parts Fried 1 | . . 1 Impact Corruptions 3 | . . 3 Robots Melted . | . . . Combat Hostiles . | . . . Parts Melted 3 | . . 3 Heat Transferred 3441 | . 37 3404 Parts Sabotaged . | . . . Parts Stolen . | . . . Parts Stripped . | . . . Power Chain Reactions . | . . . Missiles Intercepted . | . . . Alert | -11 -10 -9 ------- Run | Scr Mat Mat Peak Influence 402 | . 213 402 Initial 11 | . . 11 Average 122 | . 57 151 Maximum Alert Level 2 | . 1 2 Low Security (%) 79 | . 99 71 Level 1 18 | . . 27 Level 2 1 | . . 1 Level 3 . | . . . Level 4 . | . . . Level 5 . | . . . High Security . | . . . Max Security . | . . . Squads Dispatched 3 | . . 3 Investigation 1 | . . 1 Extermination . | . . . Reinforcement 2 | . . 2 Assault . | . . . Garrison . | . . . Intercept . | . . . Searches Triggered . | . . . Construction Impeded . | . . . Haulers Reinforced . | . . . Active Scanning Responses . | . . . Cargo Convoy Interrupts . | . . . Stealth | -11 -10 -9 --------- Run | Scr Mat Mat Distress Signals 4 | . . 4 Communications Jammed . | . . . Distress Signals . | . . . Times Spotted 63 | . 14 49 Peak Tracking Total 6 | . 5 6 Tactical Retreats 1 | . . 1 Traps | -11 -10 -9 ------- Run | Scr Mat Mat Traps Triggered 3 | . 1 2 Indirectly . | . . . Trap Hack Attempts . | . . . Triggered . | . . . Disarmed . | . . . Reprogrammed . | . . . Reused . | . . . Traps Extracted . | . . . Installed . | . . . Triggered . | . . . Machines | -11 -10 -9 ---------- Run | Scr Mat Mat Machines Disabled 2 | . . 2 Max in Single Turn 1 | . . 1 Machines Sabotaged . | . . . Garrisons Compromised . | . . . Overloaded Fab Kills . | . . . Hacking | -11 -10 -9 --------- Run | Scr Mat Mat Machines Accessed 14 | . 8 6 Terminals 13 | . 7 6 Fabricators . | . . . Repair Stations . | . . . Recycling Units 1 | . 1 . Scanalyzers . | . . . Garrison Access . | . . . Total Hacks 37 | . 14 23 Successful 20 | . 9 11 Failed 17 | . 5 12 Catastrophic 4 | . 2 2 Database Lockouts . | . . . Manual 33 | . 12 21 Terminals 36 | . 13 23 Fabricators . | . . . Repair Stations . | . . . Recycling Units 1 | . 1 . Scanalyzers . | . . . Garrison Access . | . . . Terminal Hacks 6 | . 1 5 Robot Analysis 1 | . . 1 Alert Level 1 | . 1 . Unreport Threat 3 | . . 3 Registered Prototypes 1 | . . 1 Fabricator Hacks . | . . . Repair Station Hacks . | . . . Recycling Unit Hacks 1 | . 1 . Report Inventory 1 | . 1 . Scanalyzer . | . . . Garrison Access Hacks . | . . . Unauthorized Hacks 13 | . 7 6 Terminals 13 | . 7 6 Assimilate 2 | . 1 1 Botnet 9 | . 5 4 Operators 2 | . 1 1 Fabricators . | . . . Repair Stations . | . . . Recycling Units . | . . . Scanalyzers . | . . . Garrison Access . | . . . Data Cores Recovered . | . . . Used . | . . . Hacking Detections 8 | . 4 4 Full Trace Events 1 | . 1 . Feedback Events . | . . . Feedback Blocked . | . . . Robot Schematics Acquired . | . . . Robots Built . | . . . Authchips . | . . . Time . | . . . Total Robot Build Rating . | . . . Part Schematics Acquired . | . . . Parts Built . | . . . Authchips . | . . . Time . | . . . Total Part Build Rating . | . . . Parts Repaired . | . . . Time . | . . . Parts Recycled . | . . . Recycled Matter . | . . . Retrieved Matter . | . . . Retrieved Components . | . . . Parts Scanalyzed . | . . . Part Schematics Acquired . | . . . Parts Damaged . | . . . Bothacking | -11 -10 -9 ------------ Run | Scr Mat Mat Used RIF Installer . | . . . Robots Hacked . | . . . Non-combat . | . . . Combat . | . . . Robot Hacks Applied . | . . . Relay Couplers Released . | . . . Fabnet Peak Effective % . | . . . Robots Rewired . | . . . Allies Hacked . | . . . Hacks Repelled . | . . . Allies | -11 -10 -9 -------- Run | Scr Mat Mat Total Allies 1 | . 1 . Largest Group 1 | . 1 1 Highest-Rated Group 10 | . 10 10 Highest-Rated Ally 10 | . 10 10 Total Orders . | . . . Ally Attacks . | . . . Total Damage . | . . . Kills . | . . . Allies Corrupted . | . . . Allies Melted . | . . . Intel | -11 -10 -9 ------- Run | Scr Mat Mat Robot Analysis Total 1 | . . 1 Derelict Logs Recovered . | . . . Drone Launches . | . . . Drone Recoveries . | . . . Exploration | -11 -10 -9 ------------- Run | Scr Mat Mat Turns Passed 2483 | . 757 1726 Spaces Moved 1285 | 1 539 745 Core . | . . . Treads . | . . . Legs 1109 | 1 539 569 Wheels 176 | . . 176 Hover . | . . . Flight . | . . . Fastest Speed 120 | 120 120 120 Average Speed 148 | 120 120 169 Slowest Speed 260 | 120 120 260 Overloaded Moves . | . . . Propulsion Burnouts . | . . . Robots Hopped . | . . . Cave-ins Triggered . | . . . Exploration Rate (%) 49 | 2 80 65 Regions Visited 2 Branch Regions . Pre-discovered Areas . | . . . Known Exits Taken . | . . . Unknown Exits Taken 2 | 1 1 . Scrap Searched . | . . . Spaces Dug . | . . . Terrain Destroyed . | . . . Melee . | . . . Projectile . | . . . AOE . | . . . Terrain Rammed . | . . . Walls Destroyed . | . . . Machines Disabled . | . . . Actions | -11 -10 -9 --------- Run | Scr Mat Mat Total 1593 | . 601 992 Wait 67 | . 11 56 Move 1283 | . 538 745 Hop . | . . . Pick Up 19 | . 7 12 Fast Attach 16 | . 3 13 Attach 11 | . 1 10 Detach 8 | . 1 7 Swap 13 | . 4 9 Drop 18 | . 8 10 Fire 148 | . 28 120 Melee 8 | . . 8 Ram 1 | . . 1 Kick 1 | . . 1 Crush . | . . . Escape Stasis . | . . . Rewire . | . . . Trap . | . . . Miscellaneous . | . . . Route ------- -11/Scrapyard -10/Materials (discovered 4 exits: *Mat x2 / [*Min x2]) -9/Materials (discovered 3 exits: [*Mat x2] / [*Min]) History --------- Turn | Location | Event 1 | -11/Scrapyard | Discovered new exit (range 0) 1 | -11/Scrapyard | Entered Materials 41 | -10/Materials | Discovered new exit (range 9) 93 | -10/Materials | Discovered new exit (range 13) 310 | -10/Materials | Build established: Mutant 409 | -10/Materials | Discovered new exit (range 8) 686 | -10/Materials | Discovered new exit (range 15) 758 | -10/Materials | Entered another Materials area 758 | -9/Materials | Accompanied by 1 ally 758 | -9/Materials | Evolved 2 slots: Propulsion x1, Utility x1 1080 | -9/Materials | Discovered new exit (range 11) 1291 | -9/Materials | Build established: Scavenger-Mutant 1447 | -9/Materials | Core integrity fell below 50% 1600 | -9/Materials | Build established: Mutant 1719 | -9/Materials | Discovered new exit (range 15) 1925 | -9/Materials | Build established: Scavenger-Mutant 2016 | -9/Materials | Discovered new exit (range 16) 2102 | -9/Materials | Core integrity fell below 20% 2225 | -9/Materials | Lost 4 parts (1p2n1u) 2484 | -9/Materials | Destroyed by G-34 Mercenary with Small Laser Last Messages --------------- >>Trojan(Botnet) Trojan loaded successfully. Testing... Terminal linked with 1 system. Awaiting botnet instructions. 02260_ System corrupted: Matter fused (-7). 02261_ Acquired Prototype Flight Unit. 02261_ Identified Imp. Flight Unit. 02261_ Malfunction: Energy drain (-188). 02263_ Dropped Faulty Imp. Flight Unit. 02265_ Acquired Imp. Flight Unit. 02275_ System corrupted: Matter fused (-8). 02275_ K-01 Serf collects debris. 02283_ Acquired Hrd. Light Armor Plating. 02380_ =OZ&LZOA/ENVOFLOQ%<:IOCZXUEOH 02396_ Slammed into K-01 Serf. 02411_ X>%N29I613T3YIE:VE6, U9D Z/%TITQD8P 02413_ ALERT: Hostiles spotted, dispatching reinforcements to Terminal M011. 02440_ W-16 Scout sends out distress signal. Map ----- +----------------------------------------------------+ | == ## ######??????????????????????????????? | | ######### # ##?????????????????????????????? | | #?## ## ## #?????????????????????????????? | | """ #?# # #?????????????????????????????? | | """ #?# ! !# #??????????????????????####???? | | """ #?# !+% #??????????????????????# ??? | | ######?# =# #??????????????????????# """ | | ???????# # #??????????????????????# """"" | | ???????## # #??????????????????????# """"" | | #####???# # # #??????????????????????# """"" | | #???### # #??????????????????????# """ | | #?????###### #??????????????????????# = | | #??????????# #??????????????????????# [%= | | #??????????# #??????????????????????###+###+ | | #??????????# #????????????????????????#%** | | #??????????# ########?????????????????# %* | | #??????????# % # / #??????########???# [ | | #??????????# #% / #??????? #???# #### | | ################ #%%/ #??????? #???# #??? | | %+ #???????? #???#=#??? | | # #??????## #####+#### | | # #??????# ## %""" | | ################ ########???????? ?# "R" | | ??????????????# ################# #### " " | | ??????????????# % # | | ??????????????# @ g + | | ??????????????# o k g # """ | | ??????????????# k ###+######+####### # """ | | ??????????????# ##### # #??# # """ | | ??????????????# ????# # "" #??# # | | ??????????????# ????# """ # """#??# ######### | | ??????????????# ????# """ # S"#??# #???????? | | ??????????????# ????# """ # #??# #???????? | | ??????????????# ????# # #??# #????#### | | ??????????????# ????############ ##??# #????# % | | ??????????????# ??#########?????##???# #???## | | ????????????### ###"""T"""#####??????# #???# | | ????????????# #??????# #????# | | ????????????# #??????# #????# ! | | ????????????# #??????# #????#= | | ????????????# ### #??????# #????# | | ????????????# ??# #??????# #????# | | ???????????? #?# " #??????# #????# | | ???????????? #?# """ " "% ######## ######### | | ???????????? #?# """ "" # | | ???????????? #?# """ """ # | | ???????????# ### "" "" # | | ???????????# #"" """ """ ############+### # | | ???????????# #"" "" "" #??????# ## # | | ???????????# #"T """ """ #??????# ## # | +----------------------------------------------------+ Best States ------------- Heat Dissipation 38 Energy Generation 12 Energy Capacity 265 Matter Stores 300 Matter Capacity 300 Sight Range 16 Terrain Scan Density 10 Armor Coverage 450 Evasion (%) 55 Targeting Accuracy 6 Offensive Hacking 10 Item Schematics ----------------- None Robot Schematics ------------------ None Fabricated ------------ Nothing Alien Tech Used ----------------- None Achievements -------------- None Challenges ------------ None Game ------ Seed DecoderAntigravRouter Manual? 0 Play Time 00:24:08 Cumulative 52.1 hours Start 2022.05.18 @ 09:15:39 End 2022.05.18 @ 09:34:45 Sessions 1 Manual Loads 0 Difficulty Rogue Special Mode None Game No. 51 Rogue 51 Adventurer 0 Explorer 0 Win Type - Total 0 Types 0/0/0/0/0/0/0/0/0 Lore% 31 Gallery% 47 Achievement% 30 Wizard Run 0 Options --------- ASCII 0 Keyboard 1 Movement Numpad Keybinds 0 Fullscreen 1 Font 36/Smallcaps Map View 76x50 Tactical HUD 1 Map Filters NONE Filters NONE Steam 1 RUN: 5991bb54-824d-4ff2-b294-bf271cbcb564